[Event "*** Titled Tuesday Blitz"]
[Site "Chess.com"]
[Date "2019.04.02"]
[Round "1"]
[White "HanSchut"]
[Black "DoHoChess"]
[Result "0-1"]
[WhiteElo "2189"]
[BlackElo "2545"]
[TimeControl "180+2"]
[EndTime "14:09:34 PDT"]
[Termination "DoHoChess won by resignation"]

1. e4 {[%clk 0:03:01.9]} 1... c5 {[%clk 0:02:56.5]} 2. Nf3 {[%clk 0:03:01.1]}
2... e6 {[%clk 0:02:57.5]} 3. c4 {[%clk 0:03:01.7]} 3... Nc6 {[%clk 0:02:58.5]}
4. Nc3 {[%clk 0:03:02.4]} 4... Nf6 {[%clk 0:03:00.2]} 5. Be2 {[%clk 0:03:02.3]}
5... b6 {[%clk 0:03:00.8]} 6. O-O {[%clk 0:03:02.5]} 6... Bb7 {[%clk 0:03:01.9]}
7. Re1 {[%clk 0:03:01]} 7... Qb8 {[%clk 0:03:00.8]} 8. Bf1 {[%clk 0:02:45.3]}
8... Nd4 {[%clk 0:02:59.4]} 9. d3 {[%clk 0:02:33.1]} 9... Nxf3+ {[%clk
0:02:57.6]} 10. Qxf3 {[%clk 0:02:31.3]} 10... a6 {[%clk 0:02:55.2]} 11. Bg5
{[%clk 0:02:06.3]} 11... Be7 {[%clk 0:02:56.1]} 12. Rad1 {[%clk 0:01:59.6]}
12... O-O {[%clk 0:02:52.5]} 13. Qg3 {[%clk 0:01:52.3]} 13... Qxg3 {[%clk
0:02:47.9]} 14. hxg3 {[%clk 0:01:52.6]} 14... d6 {[%clk 0:02:46.8]} 15. f4
{[%clk 0:01:42.9]} 15... h6 {[%clk 0:02:45.8]} 16. Bh4 {[%clk 0:01:43.9]} 16...
Rfe8 {[%clk 0:02:33.7]} 17. Be2 {[%clk 0:01:35.9]} 17... Rad8 {[%clk 0:02:27.7]}
18. Bf3 {[%clk 0:01:36.3]} 18... Nd7 {[%clk 0:02:20.1]} 19. Bxe7 {[%clk
0:01:31.9]} 19... Rxe7 {[%clk 0:02:21.2]} 20. g4 {[%clk 0:01:29]} 20... Nb8
{[%clk 0:02:21.4]} 21. Kf2 {[%clk 0:01:26]} 21... Nc6 {[%clk 0:02:22.3]} 22. Rh1
{[%clk 0:01:24.2]} 22... Red7 {[%clk 0:02:18.6]} 23. Rh5 {[%clk 0:01:21.7]}
23... Ne7 {[%clk 0:02:15.6]} 24. g5 {[%clk 0:01:14.5]} 24... hxg5 {[%clk
0:01:49.9]} 25. Rdh1 {[%clk 0:01:14.4]} 25... Kf8 {[%clk 0:01:12.6]} 26. Rxg5
{[%clk 0:00:36.7]} 26... Ng6 {[%clk 0:01:07]} 27. f5 {[%clk 0:00:28.1]} 27...
Ne5 {[%clk 0:01:06.3]} 28. Ke3 {[%clk 0:00:16.6]} 28... b5 {[%clk 0:01:04.9]}
29. Rh8+ {[%clk 0:00:15.8]} 29... Ke7 {[%clk 0:01:05.6]} 30. Rxd8 {[%clk
0:00:17.4]} 30... Rxd8 {[%clk 0:01:06.3]} 31. fxe6 {[%clk 0:00:16.2]} 31... bxc4
{[%clk 0:01:00]} 32. Rxg7 {[%clk 0:00:12.3]} 32... Kxe6 {[%clk 0:01:00]} 33.
dxc4 {[%clk 0:00:05.9]} 33... Nxc4+ {[%clk 0:01:01.1]} 34. Kf4 {[%clk
0:00:07.6]} 34... Ne5 {[%clk 0:01:01.3]} 35. Nd5 {[%clk 0:00:06.1]} 35... Bxd5
{[%clk 0:00:59.8]} 36. exd5+ {[%clk 0:00:06.9]} 36... Kf6 {[%clk 0:01:01.3]} 37.
Rh7 {[%clk 0:00:05.9]} 37... Rb8 {[%clk 0:00:59.2]} 38. Rh6+ {[%clk 0:00:05.5]}
38... Ng6+ {[%clk 0:00:59.3]} 39. Ke3 {[%clk 0:00:03.6]} 39... Rxb2 {[%clk
0:01:00.3]} 40. g4 {[%clk 0:00:04.9]} 40... Rxa2 {[%clk 0:00:58.8]} 41. Be4
{[%clk 0:00:05.7]} 41... Kg7 {[%clk 0:00:47.5]} 42. Rh5 {[%clk 0:00:05.2]} 42...
Ne5 {[%clk 0:00:47.5]} 43. Rg5+ {[%clk 0:00:05]} 43... Kf8 {[%clk 0:00:48.8]}
44. Kf4 {[%clk 0:00:05.5]} 44... Ke7 {[%clk 0:00:47.9]} 45. Rf5 {[%clk
0:00:05.6]} 45... Rf2+ {[%clk 0:00:47]} 46. Ke3 {[%clk 0:00:05.3]} 46... Rxf5
{[%clk 0:00:48.4]} 47. gxf5 {[%clk 0:00:06.4]} 47... a5 {[%clk 0:00:49.1]} 48.
Kd2 {[%clk 0:00:05.6]} 48... Kf6 {[%clk 0:00:50.5]} 49. Kc3 {[%clk 0:00:06.1]}
49... Kg5 {[%clk 0:00:51.5]} 50. Bc2 {[%clk 0:00:05.2]} 50... Kf4 {[%clk
0:00:51.8]} 51. Kb3 {[%clk 0:00:06.2]} 51... Ke3 {[%clk 0:00:51.5]} 52. Ka4
{[%clk 0:00:07.4]} 52... Nc4 {[%clk 0:00:52.3]} 53. Kb5 {[%clk 0:00:07.5]} 53...
Kd4 {[%clk 0:00:53.2]} 54. Bb3 {[%clk 0:00:06.9]} 54... Ne5 {[%clk 0:00:48.8]}
55. Kxa5 {[%clk 0:00:07.8]} 55... c4 {[%clk 0:00:49.8]} 56. Bc2 {[%clk
0:00:07.4]} 56... Kxd5 {[%clk 0:00:51]} 57. Kb4 {[%clk 0:00:08]} 57... Kd4
{[%clk 0:00:52.5]} 58. f6 {[%clk 0:00:07.5]} 58... d5 {[%clk 0:00:53.8]} 59. Kb5
{[%clk 0:00:07.7]} 59... Kc3 {[%clk 0:00:54]} 60. Bh7 {[%clk 0:00:07.5]} 60...
d4 {[%clk 0:00:55.1]} 61. Kc5 {[%clk 0:00:08.3]} 61... d3 {[%clk 0:00:55.9]} 62.
Kd5 {[%clk 0:00:09.9]} 62... Ng4 {[%clk 0:00:55]} 63. Bg6 {[%clk 0:00:09.5]}
63... Nxf6+ {[%clk 0:00:55]} 0-1

[Event "*** Titled Tuesday Blitz"]
[Site "Chess.com"]
[Date "2019.04.02"]
[Round "1"]
[White "riconaipe"]
[Black "Artooooo"]
[Result "0-1"]
[WhiteElo "2407"]
[BlackElo "2733"]
[TimeControl "180+2"]
[EndTime "14:09:38 PDT"]
[Termination "Artooooo won on time"]

1. d4 {[%clk 0:03:01.9]} 1... Nf6 {[%clk 0:03:00.5]} 2. c4 {[%clk 0:03:01.5]}
2... e6 {[%clk 0:02:59.9]} 3. Nc3 {[%clk 0:03:02.5]} 3... d5 {[%clk 0:02:58]} 4.
cxd5 {[%clk 0:03:00.2]} 4... exd5 {[%clk 0:02:59.9]} 5. Bg5 {[%clk 0:03:00.3]}
5... c6 {[%clk 0:02:56.2]} 6. Qc2 {[%clk 0:02:59.5]} 6... Be7 {[%clk 0:02:51.3]}
7. e3 {[%clk 0:03:00.3]} 7... Be6 {[%clk 0:02:50.6]} 8. Bd3 {[%clk 0:03:01.2]}
8... Nbd7 {[%clk 0:02:50.5]} 9. Nge2 {[%clk 0:03:02.2]} 9... Nh5 {[%clk
0:02:40.9]} 10. Bxe7 {[%clk 0:03:01.1]} 10... Qxe7 {[%clk 0:02:42.8]} 11. O-O
{[%clk 0:03:01.6]} 11... g6 {[%clk 0:02:43.3]} 12. Rae1 {[%clk 0:02:58.8]} 12...
O-O {[%clk 0:02:44.3]} 13. f3 {[%clk 0:02:43.5]} 13... f5 {[%clk 0:02:39.3]} 14.
Nf4 {[%clk 0:02:40.9]} 14... Nxf4 {[%clk 0:02:37.1]} 15. exf4 {[%clk 0:02:42]}
15... Qf6 {[%clk 0:02:30.6]} 16. Qf2 {[%clk 0:02:38.1]} 16... Rfe8 {[%clk
0:02:30.5]} 17. Re2 {[%clk 0:02:38.7]} 17... Bf7 {[%clk 0:02:31.7]} 18. Rfe1
{[%clk 0:02:39.5]} 18... Rxe2 {[%clk 0:02:33.3]} 19. Rxe2 {[%clk 0:02:40.3]}
19... Re8 {[%clk 0:02:34.6]} 20. Rxe8+ {[%clk 0:02:41]} 20... Bxe8 {[%clk
0:02:36.5]} 21. Qe3 {[%clk 0:02:41.7]} 21... Bf7 {[%clk 0:02:35.2]} 22. g4
{[%clk 0:02:38.1]} 22... Be6 {[%clk 0:02:29.4]} 23. g5 {[%clk 0:02:39]} 23...
Qe7 {[%clk 0:02:27.4]} 24. Kf2 {[%clk 0:02:30.1]} 24... Qd6 {[%clk 0:02:21.1]}
25. h4 {[%clk 0:02:24.4]} 25... Bf7 {[%clk 0:02:13.2]} 26. a3 {[%clk 0:02:24.1]}
26... Kf8 {[%clk 0:02:07.6]} 27. h5 {[%clk 0:02:17]} 27... Qe7 {[%clk
0:02:04.3]} 28. hxg6 {[%clk 0:02:05.6]} 28... hxg6 {[%clk 0:01:45.5]} 29. b4
{[%clk 0:01:56.4]} 29... Qxe3+ {[%clk 0:01:36.5]} 30. Kxe3 {[%clk 0:01:57.4]}
30... Ke7 {[%clk 0:01:38.4]} 31. Na4 {[%clk 0:01:57.1]} 31... b6 {[%clk
0:01:36.2]} 32. Nc3 {[%clk 0:01:40.8]} 32... Kd6 {[%clk 0:01:37]} 33. Ne2 {[%clk
0:01:22.6]} 33... Nf8 {[%clk 0:01:36.1]} 34. Ng3 {[%clk 0:00:57.9]} 34... Be6
{[%clk 0:01:13.3]} 35. Bc2 {[%clk 0:00:56.3]} 35... Bd7 {[%clk 0:01:12]} 36. Bd3
{[%clk 0:00:50.3]} 36... c5 {[%clk 0:01:12.7]} 37. bxc5+ {[%clk 0:00:49.3]}
37... bxc5 {[%clk 0:01:14.6]} 38. Bc2 {[%clk 0:00:46]} 38... cxd4+ {[%clk
0:00:57.6]} 39. Kxd4 {[%clk 0:00:46.4]} 39... Ne6+ {[%clk 0:00:59.2]} 40. Ke3
{[%clk 0:00:44.6]} 40... d4+ {[%clk 0:01:00.7]} 41. Kd2 {[%clk 0:00:35.3]} 41...
Nxf4 {[%clk 0:01:00.2]} 42. Bb3 {[%clk 0:00:36.2]} 42... Bc6 {[%clk 0:00:51.9]}
43. Ne2 {[%clk 0:00:33.7]} 43... Nxe2 {[%clk 0:00:44.5]} 44. Kxe2 {[%clk
0:00:35.6]} 44... Ke5 {[%clk 0:00:35.8]} 45. Bf7 {[%clk 0:00:32.5]} 45... Bb5+
{[%clk 0:00:36.2]} 46. Kf2 {[%clk 0:00:21.8]} 46... Kf4 {[%clk 0:00:33.9]} 47.
Bxg6 {[%clk 0:00:22.5]} 47... Kxg5 {[%clk 0:00:35.4]} 48. Bf7 {[%clk 0:00:21.3]}
48... Kf4 {[%clk 0:00:36.8]} 49. Bd5 {[%clk 0:00:22.2]} 49... d3 {[%clk
0:00:30.9]} 50. Ba2 {[%clk 0:00:15.1]} 50... Ba4 {[%clk 0:00:29.7]} 51. Ke1
{[%clk 0:00:10.7]} 51... Ke3 {[%clk 0:00:31.6]} 0-1

[Event "*** Titled Tuesday Blitz"]
[Site "Chess.com"]
[Date "2019.04.02"]
[Round "1"]
[White "Chessmatus"]
[Black "12teen"]
[Result "1-0"]
[WhiteElo "2346"]
[BlackElo "2636"]
[TimeControl "180+2"]
[EndTime "14:09:39 PDT"]
[Termination "Chessmatus won by resignation"]

1. d4 {[%clk 0:03:01.9]} 1... a6 {[%clk 0:02:59.7]} 2. c4 {[%clk 0:03:02.6]}
2... b5 {[%clk 0:03:00.8]} 3. e3 {[%clk 0:03:02.2]} 3... Bb7 {[%clk 0:03:00.9]}
4. Nf3 {[%clk 0:03:03.2]} 4... b4 {[%clk 0:02:59]} 5. a3 {[%clk 0:03:02.4]} 5...
e6 {[%clk 0:02:58.3]} 6. axb4 {[%clk 0:03:03.4]} 6... Bxb4+ {[%clk 0:03:00.2]}
7. Bd2 {[%clk 0:03:03.3]} 7... Be7 {[%clk 0:02:59.5]} 8. Nc3 {[%clk 0:03:03.9]}
8... Nf6 {[%clk 0:03:00.6]} 9. Bd3 {[%clk 0:03:04.7]} 9... O-O {[%clk
0:03:02.1]} 10. O-O {[%clk 0:03:05.6]} 10... d6 {[%clk 0:03:03.5]} 11. b4 {[%clk
0:03:01.9]} 11... Nbd7 {[%clk 0:03:03.6]} 12. Qc2 {[%clk 0:02:58.2]} 12... h6
{[%clk 0:02:57.7]} 13. e4 {[%clk 0:02:47]} 13... Nb6 {[%clk 0:02:22.1]} 14. d5
{[%clk 0:02:41.6]} 14... e5 {[%clk 0:02:10.4]} 15. c5 {[%clk 0:02:41.1]} 15...
dxc5 {[%clk 0:02:10.6]} 16. bxc5 {[%clk 0:02:41.8]} 16... Bxc5 {[%clk
0:02:11.8]} 17. Nxe5 {[%clk 0:02:31.3]} 17... Re8 {[%clk 0:02:06.9]} 18. Nf3
{[%clk 0:02:26.1]} 18... Bd6 {[%clk 0:02:07.4]} 19. Rfb1 {[%clk 0:02:21.5]}
19... Bc8 {[%clk 0:02:00.5]} 20. h3 {[%clk 0:02:18.4]} 20... Nbd7 {[%clk
0:01:55.5]} 21. Nd4 {[%clk 0:02:18.2]} 21... Ne5 {[%clk 0:01:54.9]} 22. Bf1
{[%clk 0:02:13.3]} 22... Ng6 {[%clk 0:01:30.4]} 23. Nc6 {[%clk 0:02:11.8]} 23...
Qd7 {[%clk 0:01:30.8]} 24. Nb8 {[%clk 0:02:10.9]} 24... Qe7 {[%clk 0:01:31.3]}
25. Nc6 {[%clk 0:02:05.2]} 25... Qd7 {[%clk 0:01:30.7]} 26. Be3 {[%clk
0:01:59.7]} 26... Ne5 {[%clk 0:01:24.4]} 27. Bb5 {[%clk 0:01:48.5]} 27... axb5
{[%clk 0:01:01.5]} 28. Nxe5 {[%clk 0:01:27.7]} 28... Bxe5 {[%clk 0:00:43]} 29.
Rxa8 {[%clk 0:01:28]} 29... c6 {[%clk 0:00:38.5]} 30. Ra7 {[%clk 0:01:24.2]}
30... Qd6 {[%clk 0:00:33.7]} 31. dxc6 {[%clk 0:00:59.5]} 31... Qxc6 {[%clk
0:00:34.6]} 32. Rc1 {[%clk 0:01:00.5]} 32... b4 {[%clk 0:00:24.8]} 33. Ne2
{[%clk 0:00:51.9]} 33... Qb5 {[%clk 0:00:26.2]} 34. Nd4 {[%clk 0:00:47]} 34...
Qb8 {[%clk 0:00:20.3]} 35. Ra5 {[%clk 0:00:38.7]} 35... Bb7 {[%clk 0:00:11.8]}
36. f3 {[%clk 0:00:37.4]} 36... Bh2+ {[%clk 0:00:11]} 37. Kh1 {[%clk 0:00:36.2]}
37... Be5 {[%clk 0:00:12.2]} 38. Nf5 {[%clk 0:00:34.5]} 38... Nh5 {[%clk
0:00:06.2]} 39. Rb5 {[%clk 0:00:28.6]} 39... g6 {[%clk 0:00:06.6]} 40. Nxh6+
{[%clk 0:00:28.7]} 40... Kg7 {[%clk 0:00:08.2]} 41. Ng4 {[%clk 0:00:28.7]} 41...
Bd6 {[%clk 0:00:06.5]} 42. Bd4+ {[%clk 0:00:28.4]} 42... f6 {[%clk 0:00:08]} 43.
Qb2 {[%clk 0:00:21.4]} 43... Rf8 {[%clk 0:00:07.4]} 44. Rb6 {[%clk 0:00:21]}
44... Rf7 {[%clk 0:00:07.5]} 45. Rb1 {[%clk 0:00:19.3]} 45... Ng3+ {[%clk
0:00:06.6]} 46. Kg1 {[%clk 0:00:19.9]} 46... Qc7 {[%clk 0:00:08.2]} 47. Rb5
{[%clk 0:00:20.1]} 47... Nh5 {[%clk 0:00:07.9]} 48. e5 {[%clk 0:00:20.5]} 48...
Bf8 {[%clk 0:00:07.1]} 49. exf6+ {[%clk 0:00:21.2]} 49... Kh7 {[%clk 0:00:08.4]}
50. Re1 {[%clk 0:00:21]} 50... Ba6 {[%clk 0:00:08.8]} 51. Rxh5+ {[%clk
0:00:21.6]} 51... gxh5 {[%clk 0:00:09.5]} 52. Qb1+ {[%clk 0:00:23.5]} 52... Kh8
{[%clk 0:00:09.3]} 53. Ne5 {[%clk 0:00:22.8]} 53... Rd7 {[%clk 0:00:06.2]} 54.
Nxd7 {[%clk 0:00:23.5]} 54... Qxd7 {[%clk 0:00:08.1]} 55. Qe4 {[%clk 0:00:23.6]}
55... Bb7 {[%clk 0:00:08.6]} 56. f7+ {[%clk 0:00:24.2]} 56... Bg7 {[%clk
0:00:09.7]} 57. Qe8+ {[%clk 0:00:24.4]} 57... Kh7 {[%clk 0:00:10.3]} 58. Qxd7
{[%clk 0:00:25.1]} 1-0

[Event "*** Titled Tuesday Blitz"]
[Site "Chess.com"]
[Date "2019.04.02"]
[Round "1"]
[White "effefe"]
[Black "SoltaniciR"]
[Result "0-1"]
[WhiteElo "2253"]
[BlackElo "2590"]
[TimeControl "180+2"]
[EndTime "14:09:40 PDT"]
[Termination "SoltaniciR won by resignation"]

1. d4 {[%clk 0:03:01.9]} 1... Nf6 {[%clk 0:03:00.6]} 2. c4 {[%clk 0:03:02.3]}
2... Nc6 {[%clk 0:03:01.6]} 3. Nc3 {[%clk 0:03:02.1]} 3... e5 {[%clk 0:03:02.4]}
4. d5 {[%clk 0:03:02.1]} 4... Ne7 {[%clk 0:03:03.9]} 5. e4 {[%clk 0:03:03.1]}
5... Ng6 {[%clk 0:03:04.3]} 6. f3 {[%clk 0:03:03.1]} 6... Bc5 {[%clk 0:03:03.3]}
7. Nh3 {[%clk 0:02:55.4]} 7... d6 {[%clk 0:03:02.1]} 8. Nf2 {[%clk 0:02:55.4]}
8... O-O {[%clk 0:02:56.8]} 9. Nd3 {[%clk 0:02:56.6]} 9... Bb6 {[%clk
0:02:51.3]} 10. Na4 {[%clk 0:02:56.5]} 10... Ba5+ {[%clk 0:02:51.5]} 11. b4
{[%clk 0:02:55.5]} 11... Bb6 {[%clk 0:02:51]} 12. Nxb6 {[%clk 0:02:56.6]} 12...
axb6 {[%clk 0:02:51.5]} 13. Be2 {[%clk 0:02:49.7]} 13... Nh5 {[%clk 0:02:52.2]}
14. O-O {[%clk 0:02:49.4]} 14... f5 {[%clk 0:02:51.4]} 15. exf5 {[%clk
0:02:49.2]} 15... Bxf5 {[%clk 0:02:52]} 16. Be3 {[%clk 0:02:48.1]} 16... Nhf4
{[%clk 0:02:38]} 17. Nxf4 {[%clk 0:02:48.2]} 17... Nxf4 {[%clk 0:02:38.7]} 18.
Bxf4 {[%clk 0:02:46.4]} 18... exf4 {[%clk 0:02:39.8]} 19. Bd3 {[%clk 0:02:40.8]}
19... Bxd3 {[%clk 0:02:33.5]} 20. Qxd3 {[%clk 0:02:41.5]} 20... Qf6 {[%clk
0:02:35]} 21. a3 {[%clk 0:02:28.5]} 21... Rfe8 {[%clk 0:02:31.1]} 22. Rae1
{[%clk 0:02:22.3]} 22... Re5 {[%clk 0:02:31.6]} 23. Rxe5 {[%clk 0:02:15.7]}
23... Qxe5 {[%clk 0:02:31.4]} 24. Rb1 {[%clk 0:01:51.7]} 24... Re8 {[%clk
0:02:25.1]} 25. Kf2 {[%clk 0:01:46]} 25... Qe3+ {[%clk 0:02:21.8]} 26. Qxe3
{[%clk 0:01:47]} 26... Rxe3 {[%clk 0:02:23.5]} 27. a4 {[%clk 0:01:38.9]} 27...
Rc3 {[%clk 0:02:22.4]} 28. a5 {[%clk 0:01:33.4]} 28... Rxc4 {[%clk 0:02:18.8]}
29. axb6 {[%clk 0:01:31.4]} 29... cxb6 {[%clk 0:02:20.7]} 30. Ke2 {[%clk
0:01:11.8]} 30... Rd4 {[%clk 0:02:11.4]} 31. Rc1 {[%clk 0:01:05.9]} 31... Rxd5
{[%clk 0:02:04.2]} 32. Rc7 {[%clk 0:01:04.8]} 32... Rb5 {[%clk 0:02:05]} 33.
Rxb7 {[%clk 0:01:04.6]} 33... Rxb4 {[%clk 0:02:06.1]} 34. Kd3 {[%clk 0:01:05.9]}
34... Rb2 {[%clk 0:02:00.4]} 35. Ke4 {[%clk 0:01:05.3]} 35... Rxg2 {[%clk
0:02:00.1]} 36. Rxb6 {[%clk 0:01:01.6]} 36... Rxh2 {[%clk 0:02:00.1]} 37. Kxf4
{[%clk 0:00:59.8]} 37... Rd2 {[%clk 0:01:58.7]} 38. Rb7 {[%clk 0:00:59.8]} 38...
h6 {[%clk 0:01:58.2]} 39. Rd7 {[%clk 0:00:59]} 39... Kh7 {[%clk 0:01:57.7]} 40.
Ke3 {[%clk 0:01:00.2]} 40... Rd1 {[%clk 0:01:58.1]} 41. Ke2 {[%clk 0:01:00.8]}
41... Rd5 {[%clk 0:01:58.9]} 42. Ke3 {[%clk 0:01:02.3]} 42... Kg6 {[%clk
0:01:59.4]} 43. Ke4 {[%clk 0:01:03.8]} 43... Rd1 {[%clk 0:01:58.8]} 44. f4
{[%clk 0:01:01.8]} 44... Kf6 {[%clk 0:01:58.4]} 45. Rd8 {[%clk 0:00:55.9]} 45...
Re1+ {[%clk 0:01:57.2]} 46. Kf3 {[%clk 0:00:56.2]} 46... Rd1 {[%clk 0:01:58.3]}
47. Rf8+ {[%clk 0:00:53.5]} 47... Ke7 {[%clk 0:01:57.5]} 48. Rg8 {[%clk
0:00:52.7]} 48... Kf7 {[%clk 0:01:58.3]} 49. Rd8 {[%clk 0:00:53.9]} 49... d5
{[%clk 0:01:56.8]} 50. Ke2 {[%clk 0:00:55.2]} 50... Rd4 {[%clk 0:01:55.8]} 51.
Ke3 {[%clk 0:00:55.2]} 51... Ke7 {[%clk 0:01:47.6]} 52. Rg8 {[%clk 0:00:51.6]}
52... Re4+ {[%clk 0:01:46.5]} 53. Kf3 {[%clk 0:00:52.6]} 53... Kf6 {[%clk
0:01:40]} 54. Rd8 {[%clk 0:00:52.7]} 54... Ke6 {[%clk 0:01:35]} 55. Re8+ {[%clk
0:00:49.7]} 55... Kd6 {[%clk 0:01:31]} 56. Rg8 {[%clk 0:00:48.6]} 56... Re7
{[%clk 0:01:30.6]} 57. Rd8+ {[%clk 0:00:41]} 57... Kc5 {[%clk 0:01:29.3]} 58. f5
{[%clk 0:00:39.1]} 58... d4 {[%clk 0:01:26.9]} 59. Kf4 {[%clk 0:00:29]} 59...
Kc4 {[%clk 0:01:27.9]} 60. Rc8+ {[%clk 0:00:29.2]} 60... Kd3 {[%clk 0:01:28.6]}
61. Rc6 {[%clk 0:00:26.7]} 61... Kd2 {[%clk 0:01:25.5]} 62. f6 {[%clk
0:00:17.2]} 62... gxf6 {[%clk 0:01:22.7]} 63. Rxf6 {[%clk 0:00:19.1]} 63... d3
{[%clk 0:01:22.3]} 64. Rxh6 {[%clk 0:00:20]} 64... Kc2 {[%clk 0:01:21.5]} 65.
Rc6+ {[%clk 0:00:20.3]} 65... Kd1 {[%clk 0:01:22.7]} 66. Kf3 {[%clk 0:00:18.8]}
66... d2 {[%clk 0:01:22.4]} 67. Ra6 {[%clk 0:00:09.6]} 67... Ke1 {[%clk
0:01:21.4]} 0-1

[Event "*** Titled Tuesday Blitz"]
[Site "Chess.com"]
[Date "2019.04.02"]
[Round "1"]
[White "IakovUlivar"]
[Black "NCchamp"]
[Result "1-0"]
[WhiteElo "2532"]
[BlackElo "2152"]
[TimeControl "180+2"]
[EndTime "14:09:46 PDT"]
[Termination "IakovUlivar won by resignation"]

1. e4 {[%clk 0:02:59.2]} 1... c5 {[%clk 0:03:00.5]} 2. Nf3 {[%clk 0:02:59.9]}
2... e6 {[%clk 0:03:01.7]} 3. g3 {[%clk 0:03:00.8]} 3... Nc6 {[%clk 0:03:00.1]}
4. Bg2 {[%clk 0:03:01.6]} 4... g6 {[%clk 0:03:01]} 5. O-O {[%clk 0:03:00.2]}
5... Bg7 {[%clk 0:03:01.7]} 6. c3 {[%clk 0:03:00.3]} 6... Nf6 {[%clk 0:03:02.2]}
7. e5 {[%clk 0:02:53.5]} 7... Nd5 {[%clk 0:03:02.6]} 8. d4 {[%clk 0:02:54.8]}
8... cxd4 {[%clk 0:03:01.8]} 9. cxd4 {[%clk 0:02:56.7]} 9... d6 {[%clk
0:03:01.2]} 10. exd6 {[%clk 0:02:18.8]} 10... Qxd6 {[%clk 0:03:03.1]} 11. Nc3
{[%clk 0:02:19.7]} 11... O-O {[%clk 0:03:00.3]} 12. Ne4 {[%clk 0:01:58.7]} 12...
Qc7 {[%clk 0:02:41.1]} 13. Bg5 {[%clk 0:01:28.8]} 13... Qb6 {[%clk 0:02:35.7]}
14. Qd2 {[%clk 0:01:20]} 14... Nxd4 {[%clk 0:02:31.3]} 15. Nxd4 {[%clk
0:01:14.6]} 15... Qxd4 {[%clk 0:02:20.1]} 16. Qxd4 {[%clk 0:01:15.4]} 16... Bxd4
{[%clk 0:02:22]} 17. Rab1 {[%clk 0:01:16.5]} 17... Kg7 {[%clk 0:02:15.4]} 18.
Rfd1 {[%clk 0:01:15.9]} 18... e5 {[%clk 0:01:56.3]} 19. Nd6 {[%clk 0:01:09.5]}
19... Be6 {[%clk 0:01:43.9]} 20. Nb5 {[%clk 0:00:50.4]} 20... f6 {[%clk
0:00:59.3]} 21. Nxd4 {[%clk 0:00:44.6]} 21... exd4 {[%clk 0:01:01.2]} 22. Rxd4
{[%clk 0:00:30.9]} 22... fxg5 {[%clk 0:01:01.5]} 23. Bxd5 {[%clk 0:00:31.7]}
23... Bxd5 {[%clk 0:01:02.5]} 24. Rxd5 {[%clk 0:00:32.5]} 24... Rac8 {[%clk
0:01:02.2]} 25. Rd7+ {[%clk 0:00:27.5]} 25... Rf7 {[%clk 0:01:03.2]} 26. Rbd1
{[%clk 0:00:28.9]} 26... Rc7 {[%clk 0:01:03.5]} 27. Rxc7 {[%clk 0:00:21.4]}
27... Rxc7 {[%clk 0:01:05.4]} 28. Rd2 {[%clk 0:00:22.9]} 28... Kf6 {[%clk
0:01:05.8]} 29. h3 {[%clk 0:00:22.3]} 29... Kf5 {[%clk 0:01:05.8]} 30. Kf1
{[%clk 0:00:22.6]} 30... Re7 {[%clk 0:01:01]} 31. Kg2 {[%clk 0:00:22.4]} 31...
h5 {[%clk 0:00:59]} 32. Kf3 {[%clk 0:00:22]} 32... Rc7 {[%clk 0:00:57.5]} 33.
g4+ {[%clk 0:00:22.3]} 33... Kf6 {[%clk 0:00:56]} 34. Rd6+ {[%clk 0:00:13.9]}
34... Kg7 {[%clk 0:00:56.9]} 35. Ke3 {[%clk 0:00:12.4]} 35... Re7+ {[%clk
0:00:57.4]} 36. Kd3 {[%clk 0:00:12.7]} 36... Rf7 {[%clk 0:00:58.7]} 37. Ke3
{[%clk 0:00:11.6]} 37... Re7+ {[%clk 0:00:59.8]} 38. Kf3 {[%clk 0:00:12.4]}
38... Rf7+ {[%clk 0:01:00.9]} 39. Kg2 {[%clk 0:00:12.6]} 39... Re7 {[%clk
0:01:00]} 40. a4 {[%clk 0:00:09.7]} 40... Rc7 {[%clk 0:00:57.4]} 41. a5 {[%clk
0:00:10.1]} 41... a6 {[%clk 0:00:56.5]} 42. b4 {[%clk 0:00:10]} 42... Re7 {[%clk
0:00:57]} 43. Rb6 {[%clk 0:00:10.6]} 43... Rf7 {[%clk 0:00:56.3]} 44. Kg3 {[%clk
0:00:11.8]} 44... Re7 {[%clk 0:00:53.1]} 45. f3 {[%clk 0:00:12.4]} 45... Rf7
{[%clk 0:00:53.7]} 46. b5 {[%clk 0:00:09.9]} 46... axb5 {[%clk 0:00:54.5]} 47.
Rxb5 {[%clk 0:00:11.8]} 47... Kh6 {[%clk 0:00:53.8]} 48. Rb6 {[%clk 0:00:09.5]}
48... Kg7 {[%clk 0:00:52.5]} 49. h4 {[%clk 0:00:05.9]} 49... gxh4+ {[%clk
0:00:52.7]} 50. Kxh4 {[%clk 0:00:07.8]} 50... hxg4 {[%clk 0:00:36]} 51. Kxg4
{[%clk 0:00:09.7]} 51... Kh6 {[%clk 0:00:35.6]} 52. f4 {[%clk 0:00:10.6]} 52...
Kg7 {[%clk 0:00:34.1]} 53. Rb5 {[%clk 0:00:11.5]} 53... Kh6 {[%clk 0:00:34.3]}
54. f5 {[%clk 0:00:10.8]} 54... gxf5+ {[%clk 0:00:31.5]} 55. Rxf5 {[%clk
0:00:12.7]} 55... Rxf5 {[%clk 0:00:31.6]} 56. Kxf5 {[%clk 0:00:14.6]} 56... Kg7
{[%clk 0:00:29.1]} 57. Ke6 {[%clk 0:00:15.7]} 57... Kf8 {[%clk 0:00:14.5]} 58.
Kd7 {[%clk 0:00:16.8]} 1-0